fUST/lending_fUST_20260101
["ID","MTS","AMOUNT","RATE_DAILY","PERIOD"]
[400236769,1767210647061,-250.0,0.00028297,3]
[400236770,1767210647071,-151.0,0.00028297,3]
[400236771,1767210647080,-250.0,0.00028297,3]
[400236772,1767210647090,-151.0,0.00028297,3]
[400236773,1767210647099,-250.0,0.00028297,3]
[400236774,1767210647109,-151.0,0.00028297,3]
[400236775,1767210647118,-250.0,0.00028297,3]
[400236776,1767210647127,-151.0,0.00028297,3]
[400236777,1767210647136,-250.0,0.00028297,3]
[400236778,1767210647146,-151.0,0.00028297,3]
[400236779,1767210647155,-250.0,0.00028297,3]
[400236780,1767210647165,-151.0,0.00028297,3]
[400236781,1767210647175,-250.0,0.00028297,3]
[400236782,1767210647185,-151.0,0.00028297,3]
[400236783,1767210647194,-250.0,0.00028297,3]
[400236784,1767210647204,-250.0,0.00028297,3]
[400236785,1767210647214,-151.0,0.00028297,3]
[400236786,1767210647223,-250.0,0.00028297,3]
[400236787,1767210647235,-250.0,0.00028297,3]
[400236788,1767210647245,-151.0,0.00028297,3]
[400236789,1767210647255,-250.0,0.00028297,3]
[400236790,1767210647268,-250.0,0.00028297,3]
[400236791,1767210647279,-196.9088468,0.00028297,3]
[400236792,1767210647288,-250.0,0.00028297,3]
[400236793,1767210647298,-250.0,0.00028297,3]
[400236794,1767210647310,-250.0,0.00028297,3]
[400236795,1767210647320,-250.0,0.00028297,3]
[400236796,1767210647330,-250.0,0.00028297,3]
[400236797,1767210647339,-250.0,0.00028297,3]
[400236798,1767210647348,-250.0,0.00028297,3]
[400236799,1767210647359,-250.0,0.00028297,3]
[400236800,1767210647369,-250.0,0.00028297,3]
[400236801,1767210647378,-735.11136936,0.00028299,2]
[400236802,1767210647388,-5776.28,0.00028302,2]
[400236803,1767210647398,-5000.0,0.00028358,2]
[400236804,1767210647408,-179.85611511,0.00028359,2]
[400236805,1767210647419,-2507.6553893,0.0002838,2]
[400236806,1767210647428,-203.0,0.00028446,3]
[400236807,1767210647438,-5000.0,0.00028499,7]
[400236808,1767210647447,-4160.31394348,0.000285,7]
[400236809,1767210647456,-228.54230939,0.000285,10]
[400236810,1767210647465,-160.0,0.00028514,4]
[400236811,1767210647475,-960.06601762,0.00028661,2]
[400236812,1767210647484,-26860.43220075,0.0002876,2]
[400236813,1767210647493,-2028.77969745,0.0002876,5]
[400236814,1767210647503,-19129.54201656,0.0002876,2]
[400236815,1767210647512,-5770.30317135,0.0002876,30]
[400236816,1767210647522,-496.0,0.00028761,7]
[400236817,1767210647531,-169.550149,0.00028767,60]
[400236818,1767210647540,-172.34644729,0.000288,7]
[400236819,1767210647549,-3147.76375777,0.00028881,2]
[400236820,1767210647559,-889.58046621,0.00029,2]
[400236821,1767210647567,-2406.6075983,0.00029,10]
[400236822,1767210647577,-1041.66666667,0.00029,3]
[400236823,1767210647586,-1041.66666667,0.00029,3]
[400236824,1767210647595,-160.0,0.00029036,5]
[400236825,1767210647605,-602.0,0.00029053,7]
[400236826,1767210647614,-157.0,0.00029096,32]
[400236827,1767210647623,-200.54705607,0.00029102,19]
[400236828,1767210647633,-206.57119576,0.00029165,5]
[400236829,1767210647642,-321.0,0.00029435,2]
[400236830,1767210647651,-422.6347024,0.000295,120]
[400236831,1767210647661,-169.9,0.000295,2]
[400236832,1767210647670,-323.0,0.00029551,2]
[400236833,1767210647680,-160.0,0.00029559,6]
[400236834,1767210647690,-321.0,0.00029587,7]
[400236835,1767210647699,-321.0,0.00029718,2]
[400236836,1767210647709,-10000.0,0.00029739,2]
[400236837,1767210647719,-1192.3,0.000298,14]
[400236838,1767210647728,-5000.0,0.00029871,2]
[400236839,1767210647738,-5051.8060861,0.000299,120]
[400236840,1767210647748,-11912.51,0.000299,2]
[400236841,1767210647758,-1041.66666667,0.000299,3]
[400236842,1767210647767,-166.0,0.0003,14]
[400236843,1767210647777,-1200.20317365,0.0003,2]
[400236844,1767210647787,-10188.87347094,0.0003,7]
[400236845,1767210647796,-160.0,0.00030082,7]
[400236846,1767210647806,-386.94230586,0.00030125,7]
[400236847,1767210647816,-200.54705607,0.00030149,20]
[400236848,1767210647825,-321.0,0.00030169,2]
[400236849,1767210647835,-321.0,0.00030176,2]
[400236850,1767210647844,-165.22,0.000302,7]
[400236851,1767210647854,-159.87,0.000302,7]
[400236852,1767210647864,-321.0,0.00030216,2]
[400236853,1767210647874,-203.0,0.00030237,4]
[400236854,1767210647884,-3147.76375777,0.00030254,2]
[400236855,1767210647893,-321.0,0.00030283,2]
[400236856,1767210647903,-500.0,0.00030292,7]
[400236857,1767210647912,-789.34089661,0.00030299,2]
[400236858,1767210647921,-321.0,0.00030307,2]
[400236859,1767210647931,-1400.0,0.0003031,7]
[400236860,1767210647940,-321.0,0.00030319,7]
[400236861,1767210647950,-1400.0,0.00030329,7]
[400236862,1767210647959,-1400.0,0.00030338,7]
[400236863,1767210647969,-500.0,0.00030392,7]
[400236864,1767210647978,-18873.8418236,0.00030438,2]
[400236865,1767210647987,-500.0,0.00030461,7]
[400236866,1767210647996,-595.95556496,0.00030474,7]
[400236867,1767210648006,-500.0,0.00030496,7]
[400236868,1767210648015,-1400.0,0.00030499,7]
[400236869,1767210648026,-323.0,0.00030504,7]
[400236870,1767210648035,-1400.0,0.00030537,7]
[400236871,1767210648044,-321.0,0.00030548,7]
[400236872,1767210648054,-160.0,0.00030605,8]
[400236873,1767210648063,-6601.46,0.0003066,2]
[400236874,1767210648073,-1400.0,0.0003069,7]
[400236875,1767210648083,-321.0,0.00030701,2]
[400236876,1767210648092,-166.0,0.0003074,42]
[400236877,1767210648102,-500.0,0.00030763,7]
[400236878,1767210648112,-2000.0,0.00030791,7]
[400236879,1767210648122,-1400.0,0.00030865,7]
[400236880,1767210648131,-321.0,0.00030919,2]
[400236881,1767210648140,-956.2,0.00030958,30]
[400236882,1767210648150,-216.44093064,0.00031,120]
[400236883,1767210648159,-183.42010434,0.00031,120]
[400236884,1767210648168,-200.76587943,0.00031,120]
[400236885,1767210648178,-193.78459303,0.00031,120]
[400236886,1767210648188,-200.60301448,0.00031,120]
[400236887,1767210648198,-178.86741209,0.00031,120]
[400236888,1767210648208,-161.0131865,0.00031,120]
[400236889,1767210648217,-198.07485528,0.00031,120]
[400236890,1767210648227,-206.24088796,0.00031,120]
[400236891,1767210648240,-309.65070131,0.00031,120]
[400236892,1767210648249,-162.37843672,0.00031,120]
[400236893,1767210648259,-1041.66666667,0.00031,7]
[400236894,1767210648268,-500.0,0.00031048,7]
[400236895,1767210648277,-323.0,0.00031077,2]
[400236896,1767210648287,-160.0,0.00031128,9]
[400236897,1767210648296,-323.0,0.00031146,7]
[400236898,1767210648305,-182.784702,0.0003115,31]
[400236899,1767210648315,-805.861522,0.0003115,31]
[400236900,1767210648324,-805.861522,0.0003115,31]
[400236901,1767210648333,-151.0,0.0003115,31]
[400236902,1767210648342,-187.899686,0.0003115,31]
[400236903,1767210648352,-805.861522,0.0003115,31]
[400236904,1767210648361,-151.0,0.0003115,31]
[400236905,1767210648468,-805.861522,0.0003115,31]
[400236906,1767210648478,-151.0,0.0003115,31]
[400236907,1767210648487,-209.486994,0.0003115,31]
[400236908,1767210648496,-1684.038653,0.0003115,31]
[400236909,1767210648505,-151.0,0.0003115,31]
[400236910,1767210648515,-1684.038653,0.0003115,31]
[400236911,1767210648524,-1684.038653,0.0003115,31]
[400236912,1767210648533,-151.0,0.0003115,31]
[400236913,1767210648542,-1684.038653,0.0003115,31]
[400236914,1767210648552,-234.643774,0.0003115,31]
[400236915,1767210648562,-242.224845,0.0003115,31]
[400236916,1767210648571,-242.224845,0.0003115,31]
[400236917,1767210648580,-242.224845,0.0003115,31]
[400236918,1767210648590,-242.224845,0.0003115,31]
[400236919,1767210648599,-1559.059603,0.0003115,31]
[400236920,1767210648609,-1559.059603,0.0003115,31]
[400236921,1767210648618,-1559.059603,0.0003115,31]
[400236922,1767210648627,-1559.059603,0.0003115,31]
[400236923,1767210648637,-230.54366,0.0003115,31]
[400236924,1767210648646,-179.18193,0.0003115,31]
[400236925,1767210648656,-230.54366,0.0003115,31]
[400236926,1767210648665,-230.54366,0.0003115,31]
[400236927,1767210648674,-230.54366,0.0003115,31]
[400236928,1767210648683,-913.677244,0.0003115,31]
[400236929,1767210648692,-913.677244,0.0003115,31]
[400236930,1767210648701,-913.677244,0.0003115,31]
[400236931,1767210648710,-151.0,0.0003115,31]
[400236932,1767210648719,-913.677244,0.0003115,31]
[400236933,1767210648728,-151.0,0.0003115,31]
[400236934,1767210648738,-151.0,0.0003115,31]
[400236935,1767210648747,-151.0,0.0003115,31]
[400236936,1767210648756,-151.0,0.0003115,31]
[400236937,1767210648765,-151.278502,0.0003115,31]
[400236938,1767210648774,-151.0,0.0003115,7]
[400236939,1767210648783,-151.0,0.0003115,28]
[400236940,1767210648793,-151.0,0.0003115,7]
[400236941,1767210648802,-151.0,0.0003115,7]
[400236942,1767210648811,-151.0,0.0003115,31]
[400236943,1767210648820,-151.0,0.0003115,31]
[400236944,1767210648830,-170.594651,0.0003115,31]
[400236945,1767210648839,-193.357014,0.0003115,31]
[400236946,1767210648848,-193.357014,0.0003115,31]
[400236947,1767210648858,-193.357014,0.0003115,31]
[400236948,1767210648868,-193.357014,0.0003115,31]
[400236949,1767210648877,-151.0,0.0003115,31]
[400236950,1767210648886,-151.0,0.0003115,31]
[400236951,1767210648895,-24425.5686256,0.0003115,10]
[400236952,1767210648904,-323.0,0.00031153,2]
[400236953,1767210648913,-2220.6287671,0.00031176,2]
[400236954,1767210648923,-1400.0,0.00031176,7]
[400236955,1767210648932,-200.54705607,0.00031196,22]
[400236956,1767210648941,-500.0,0.00031198,7]
[400236957,1767210648951,-1192.3,0.000312,14]
[400236958,1767210648960,-4211.3233487,0.00031201,2]
[400236959,1767210648969,-1400.0,0.00031231,7]
[400236960,1767210648978,-11912.51,0.000313,2]
[400236961,1767210648987,-321.0,0.00031337,7]
[400236962,1767210648996,-1400.0,0.0003134,7]
[400236963,1767210649005,-500.0,0.0003137,7]
[400236964,1767210649015,-1400.0,0.00031394,7]
[400236965,1767210649024,-956.2,0.00031506,31]
[400236966,1767210649033,-500.0,0.00031573,7]
[400236967,1767210649042,-1400.0,0.00031593,7]
[400236968,1767210649052,-3147.76375777,0.00031626,2]
[400236969,1767210649061,-166.0,0.00031644,14]
[400236970,1767210649070,-321.0,0.00031644,2]
[400236971,1767210649080,-160.0,0.00031651,10]
[400236972,1767210649089,-1226.0,0.00031652,30]
[400236973,1767210649098,-18560.0,0.00031652,30]
[400236974,1767210649107,-819.5,0.00031652,30]
[400236975,1767210649116,-1400.0,0.00031666,7]
[400236976,1767210649126,-325.0,0.00031676,2]
[400236977,1767210649135,-321.0,0.00031711,2]
[400236978,1767210649145,-323.0,0.00031745,2]
[400236979,1767210649154,-242.47185193,0.00031807,7]
[400236980,1767210649164,-321.0,0.00031844,7]
[400236981,1767210649174,-216.44093064,0.000319,120]
[400236982,1767210649183,-200.76587943,0.000319,120]
[400236983,1767210649192,-193.78459303,0.000319,120]
[400236984,1767210649201,-200.60301448,0.000319,120]
[400236985,1767210649211,-161.0131865,0.000319,120]
[400236986,1767210649220,-198.07485528,0.000319,120]
[400236987,1767210649229,-162.37843672,0.000319,120]
[400236988,1767210649242,-1400.0,0.00031908,7]
[400236989,1767210649251,-1400.0,0.00031932,7]
[400236990,1767210649260,-306.0394435,0.00031941,2]
[400236991,1767210649269,-716.08316336,0.00031941,2]
[400236992,1767210649279,-2861.46832078,0.00031941,2]
[400236993,1767210649288,-295.29384504,0.00031941,7]
[400236994,1767210649297,-233.69794651,0.00031941,2]
[400236995,1767210649309,-933.85699426,0.00031941,2]
[400236996,1767210649318,-175.39047567,0.00031941,7]
[400236997,1767210649327,-700.86034077,0.00031941,7]
[400236998,1767210649337,-321.0,0.00031942,2]
[400236999,1767210649346,-321.0,0.00031954,2]
[400237000,1767210649355,-1400.0,0.00031956,7]
[400237001,1767210649364,-1400.0,0.00031993,7]
[400237002,1767210649373,-1041.66666667,0.00032,120]
[400237003,1767210649382,-26677.68431593,0.00032,120]
[400237004,1767210649391,-1041.66666667,0.00032,10]
[400237005,1767210649400,-1017.21903832,0.00032,7]
[400237006,1767210649410,-203.0,0.00032028,5]
[400237007,1767210649419,-1400.0,0.00032029,7]
[400237008,1767210649427,-956.2,0.00032054,32]
[400237009,1767210649437,-1400.0,0.00032067,7]
[400237010,1767210649446,-500.0,0.00032106,7]
[400237011,1767210649455,-1400.0,0.00032109,7]
[400237012,1767210649464,-1400.0,0.00032112,7]
[400237013,1767210649473,-1400.0,0.00032118,7]
[400237014,1767210649482,-1400.0,0.0003215,7]
[400237015,1767210649491,-160.0,0.00032174,11]
[400237016,1767210649500,-1400.0,0.00032203,7]
[400237017,1767210649509,-1400.0,0.00032204,7]
[400237018,1767210649518,-1400.0,0.00032217,7]
[400237019,1767210649527,-200.54705607,0.00032243,23]
[400237021,1767210649536,-500.0,0.00032264,7]
[400237022,1767210649546,-568.81865924,0.00032277,7]
[400237023,1767210649555,-2272.99936231,0.00032277,7]
[400237024,1767210649564,-843.57042385,0.00032299,2]
[400237025,1767210649573,-1400.0,0.00032326,7]
[400237026,1767210649582,-1400.0,0.00032474,7]
[400237027,1767210649592,-2718.46508754,0.00032483,7]
[400237028,1767210649602,-956.2,0.00032602,33]
[400237029,1767210649611,-160.0,0.00032697,12]
[400237030,1767210649620,-1192.3,0.000327,14]
[400237031,1767210649629,-277.08,0.00032877,10]
[400237032,1767210649639,-230.9,0.00032877,10]
[400237033,1767210649649,-500.0,0.00032877,5]
[400237034,1767210649658,-150.0,0.00032877,5]
[400237035,1767210649668,-200.76587943,0.000329,120]
[400237036,1767210649677,-200.60301448,0.000329,120]
[400237037,1767210649686,-162.37843672,0.000329,120]
[400237038,1767210649695,-11912.51,0.000329,14]
[400237039,1767210649705,-180.0,0.00032932,57]
[400237040,1767210649714,-3147.76375777,0.00032999,2]
[400237041,1767210649723,-12721.51246894,0.00033,120]
[400237042,1767210649732,-126799.84228777,0.00033,20]
[400237043,1767210649741,-1041.66666667,0.00033,120]
[400237044,1767210649750,-151.0,0.00033,31]
[400237045,1767210649759,-396.831655,0.00033,31]
[400237046,1767210649768,-396.831655,0.00033,31]
[400237047,1767210649778,-396.831655,0.00033,31]
[400237048,1767210649787,-396.831655,0.00033,31]
[400237049,1767210649797,-151.0,0.00033,31]
[400237050,1767210649806,-151.0,0.00033,31]
[400237051,1767210649815,-151.0,0.00033,31]
[400237052,1767210649824,-612.575308,0.00033,31]
[400237053,1767210649833,-151.0,0.00033,31]
[400237054,1767210649843,-612.575308,0.00033,31]
[400237055,1767210649852,-612.575308,0.00033,31]
[400237056,1767210649861,-612.575308,0.00033,31]
[400237057,1767210649870,-151.0,0.00033,31]
[400237058,1767210649879,-151.0,0.00033,31]
[400237059,1767210649889,-151.0,0.00033,31]
[400237060,1767210649898,-151.0,0.00033,7]
[400237061,1767210649907,-442.954982,0.00033,31]
[400237062,1767210649916,-360.395551,0.00033,31]
[400237063,1767210649925,-278.004127,0.00033,31]
[400237064,1767210649934,-442.954982,0.00033,31]
[400237065,1767210649944,-360.395551,0.00033,31]
[400237066,1767210649952,-278.004127,0.00033,31]
[400237067,1767210649961,-442.954982,0.00033,31]
[400237068,1767210649971,-360.395551,0.00033,31]
[400237069,1767210649980,-278.004127,0.00033,31]
[400237070,1767210649990,-442.954982,0.00033,31]
[400237071,1767210649999,-360.395551,0.00033,31]
[400237072,1767210650009,-278.004127,0.00033,31]
[400237073,1767210650017,-151.0,0.00033,31]
[400237074,1767210650026,-151.0,0.00033,31]
[400237075,1767210650035,-151.0,0.00033,31]
[400237076,1767210650045,-151.0,0.00033,31]
[400237077,1767210650054,-151.0,0.00033,31]
[400237078,1767210650064,-151.0,0.00033,31]
[400237079,1767210650073,-152.611704,0.00033,31]
[400237080,1767210650082,-394.521351,0.00033,31]
[400237081,1767210650092,-429.596572,0.00033,31]
[400237082,1767210650101,-394.521351,0.00033,31]
[400237083,1767210650110,-429.596572,0.00033,31]
[400237084,1767210650119,-394.521351,0.00033,31]
[400237085,1767210650128,-429.596572,0.00033,31]
[400237086,1767210650138,-394.521351,0.00033,31]
[400237087,1767210650147,-429.596572,0.00033,31]
[400237088,1767210650156,-177.488115,0.00033,31]
[400237089,1767210650165,-1016.0,0.00033,7]
[400237090,1767210650175,-7426.64,0.00033019,2]
[400237091,1767210650184,-151.0,0.00033019,31]
[400237092,1767210650193,-151.0,0.00033019,31]
[400237093,1767210650202,-151.0,0.00033019,31]
[400237094,1767210650212,-261.056405,0.00033019,31]
[400237095,1767210650221,-151.0,0.00033019,31]
[400237096,1767210650230,-863.760546,0.00033019,31]
[400237097,1767210650243,-863.760546,0.00033019,31]
[400237098,1767210650253,-863.760546,0.00033019,31]
[400237099,1767210650262,-863.760546,0.00033019,31]
[400237100,1767210650272,-5000.0,0.00033121,2]
[400237101,1767210650281,-2507.6553893,0.00033146,2]
[400237102,1767210650290,-956.2,0.0003315,34]
[400237103,1767210650299,-179.95097548,0.000332,117]
[400237104,1767210650311,-179.95097547,0.000332,117]
[400237105,1767210650320,-160.0,0.0003322,13]
[400237106,1767210650329,-2863.2521,0.0003322,30]
[400237107,1767210650338,-200.54705607,0.0003329,25]
[400237108,1767210650347,-1004.98248976,0.00033425,5]
[400237109,1767210650357,-956.2,0.00033698,35]
[400237110,1767210650366,-250.0,0.00033699,5]
[400237111,1767210650375,-200.26076,0.000337,120]
[400237112,1767210650384,-156.47,0.000337,7]
[400237113,1767210650393,-160.0,0.00033743,14]
[400237114,1767210650403,-295.735,0.000338,30]
[400237115,1767210650412,-295.73,0.000338,30]
[400237116,1767210650421,-203.0,0.00033819,6]
[400237117,1767210650431,-2000.0,0.0003386,7]
[400237118,1767210650440,-162.37843672,0.000339,120]
[400237119,1767210650450,-1041.66666667,0.00034,30]
[400237120,1767210650459,-169.9,0.000341,2]
[400237121,1767210650469,-956.2,0.00034246,36]
[400237122,1767210650478,-160.0,0.00034266,15]
[400237123,1767210650488,-897.7999511,0.00034298,120]
[400237124,1767210650498,-200.54705607,0.00034338,26]
[400237125,1767210650507,-2220.6287671,0.00034365,2]
[400237126,1767210650515,-3147.76375777,0.00034372,2]
[400237127,1767210650525,-1546.22145421,0.00034416,7]
[400237128,1767210650534,-151.19,0.00034436,60]
[400237129,1767210650543,-350.0,0.00034521,5]
[400237130,1767210650554,-151.19,0.00034536,60]
[400237131,1767210650563,-1478.63,0.00034538,60]
[400237132,1767210650572,-1192.3,0.000346,30]
[400237133,1767210650581,-627.0,0.00034605,2]
[400237134,1767210650591,-2156.0,0.00034605,2]
[400237135,1767210650600,-1364.0,0.00034605,2]
[400237136,1767210650610,-151.19,0.00034636,60]
[400237137,1767210650619,-1478.63,0.00034638,60]
[400237138,1767210650627,-2500.0,0.0003465,10]
[400237139,1767210650636,-11912.51,0.000347,14]
[400237140,1767210650645,-151.19,0.00034736,60]
[400237141,1767210650744,-1478.63,0.00034738,60]
[400237142,1767210650755,-160.0,0.00034788,16]
[400237143,1767210650765,-956.2,0.00034794,37]
[400237144,1767210650774,-151.21868735,0.00034836,60]
[400237145,1767210650783,-1478.63,0.00034838,60]
[400237146,1767210650791,-1478.63,0.00034938,60]
[400237147,1767210650801,-60413.6668245,0.00035,120]
[400237148,1767210650810,-1860.91764131,0.00035,120]
[400237149,1767210650819,-1041.66666667,0.00035,120]
[400237150,1767210650828,-1478.63,0.00035038,60]
[400237151,1767210650838,-1478.63,0.00035138,60]
[400237152,1767210650847,-169.32246815,0.00035178,30]
[400237153,1767210650857,-1478.63,0.00035238,60]
[400237154,1767210650866,-153.0,0.00035282,30]
[400237155,1767210650875,-153.0,0.00035282,30]
[400237156,1767210650883,-160.0,0.00035311,17]
[400237157,1767210650893,-1478.63,0.00035338,60]
[400237158,1767210650902,-956.2,0.00035342,38]
[400237159,1767210650911,-450.0,0.00035342,5]
[400237160,1767210650920,-8251.83,0.00035377,2]
[400237161,1767210650929,-200.54705607,0.00035385,27]
[400237162,1767210650939,-367.96456977,0.00035426,15]
[400237163,1767210650948,-1478.63,0.00035438,60]
[400237164,1767210650958,-194.17,0.000355,2]
[400237165,1767210650968,-169.32246815,0.00035534,30]
[400237166,1767210650976,-151.0,0.00035538,31]
[400237167,1767210650985,-151.0,0.00035538,31]
[400237168,1767210650994,-151.0,0.00035538,31]
[400237169,1767210651004,-300.857289,0.00035538,31]
[400237170,1767210651013,-300.857289,0.00035538,31]
[400237171,1767210651023,-356.714676,0.00035538,31]
[400237172,1767210651031,-300.857289,0.00035538,31]
[400237173,1767210651041,-173.074121,0.00035538,31]
[400237174,1767210651050,-356.714676,0.00035538,31]
[400237175,1767210651060,-300.857289,0.00035538,31]
[400237176,1767210651069,-356.714676,0.00035538,31]
[400237177,1767210651078,-356.714676,0.00035538,31]
[400237178,1767210651087,-322.09978,0.00035538,31]
[400237179,1767210651096,-322.09978,0.00035538,31]
[400237180,1767210651106,-322.09978,0.00035538,31]
[400237181,1767210651115,-322.09978,0.00035538,31]
[400237182,1767210651124,-1040.629164,0.00035538,31]
[400237183,1767210651133,-1040.629164,0.00035538,31]
[400237184,1767210651142,-1040.629164,0.00035538,31]
[400237185,1767210651151,-550.492601,0.00035538,31]
[400237186,1767210651161,-1040.629164,0.00035538,31]
[400237187,1767210651170,-550.492601,0.00035538,31]
[400237188,1767210651179,-550.492601,0.00035538,31]
[400237189,1767210651188,-550.492601,0.00035538,31]
[400237190,1767210651197,-151.0,0.00035538,31]
[400237191,1767210651207,-354.430528,0.00035538,31]
[400237192,1767210651216,-354.430528,0.00035538,31]
[400237193,1767210651225,-354.430528,0.00035538,31]
[400237194,1767210651237,-354.430528,0.00035538,31]
[400237195,1767210651248,-1478.63,0.00035538,60]
[400237196,1767210651258,-376.3998898,0.00035556,30]
[400237197,1767210651267,-376.3998898,0.00035556,30]
[400237198,1767210651278,-376.3998898,0.00035556,30]
[400237199,1767210651287,-376.3998898,0.00035556,30]
[400237200,1767210651295,-376.3998898,0.00035556,30]
[400237201,1767210651305,-376.3998898,0.00035556,30]
[400237202,1767210651315,-376.3998898,0.00035556,30]
[400237203,1767210651323,-376.3998898,0.00035556,30]
[400237204,1767210651332,-376.3998898,0.00035556,30]
[400237205,1767210651342,-376.3998898,0.00035556,30]
[400237206,1767210651352,-376.3998898,0.00035556,30]
[400237207,1767210651363,-376.3998898,0.00035556,30]
[400237208,1767210651377,-376.3998898,0.00035556,30]
[400237209,1767210651386,-376.3998898,0.00035556,30]
[400237210,1767210651395,-376.3998898,0.00035556,30]
[400237211,1767210651404,-193.3811029,0.00035562,30]
[400237212,1767210651414,-599.7286954,0.00035562,30]
[400237213,1767210651423,-193.3811029,0.00035562,30]
[400237214,1767210651432,-599.7286954,0.00035562,30]
[400237215,1767210651441,-599.7286954,0.00035562,30]
[400237216,1767210651450,-193.3811029,0.00035562,30]
[400237217,1767210651459,-599.7286954,0.00035562,30]
[400237218,1767210651469,-599.7286954,0.00035562,30]
[400237219,1767210651478,-599.7286954,0.00035562,30]
[400237220,1767210651487,-193.3811029,0.00035562,30]
[400237221,1767210651495,-599.7286954,0.00035562,30]
[400237222,1767210651504,-599.7286954,0.00035562,30]
[400237223,1767210651513,-193.3811029,0.00035562,30]
[400237224,1767210651522,-193.3811029,0.00035562,30]
[400237225,1767210651531,-153.0,0.00035562,30]
[400237226,1767210651541,-153.0,0.00035562,30]
[400237227,1767210651550,-151.0,0.00035562,31]
[400237228,1767210651559,-151.0,0.00035562,31]
[400237229,1767210651568,-151.0,0.00035562,31]
[400237230,1767210651577,-221.765393,0.00035562,31]
[400237231,1767210651586,-151.0,0.00035562,31]
[400237232,1767210651595,-160.429789,0.00035562,31]
[400237233,1767210651604,-161.294785,0.00035562,31]
[400237234,1767210651613,-161.294785,0.00035562,31]
[400237235,1767210651622,-161.294785,0.00035562,31]
[400237236,1767210651631,-161.294785,0.00035562,31]
[400237237,1767210651640,-151.0,0.00035562,31]
[400237238,1767210651650,-203.0,0.00035611,30]
[400237239,1767210651659,-151.0,0.00035616,31]
[400237240,1767210651668,-1478.63,0.00035638,60]
[400237241,1767210651677,-800.0,0.00035648,7]
[400237242,1767210651686,-169.9,0.000357,2]
[400237243,1767210651695,-726.0,0.0003573,11]
[400237244,1767210651704,-1478.63,0.00035738,60]
[400237245,1767210651713,-3147.76375777,0.00035744,2]
[400237246,1767210651722,-675.0642905,0.00035787,30]
[400237247,1767210651731,-599.7286954,0.00035787,30]
[400237248,1767210651740,-500.0,0.00035796,14]
[400237249,1767210651749,-187.1804224,0.00035805,30]
[400237250,1767210651758,-2014.76529517,0.00035806,2]
[400237251,1767210651768,-1634.65241475,0.00035806,2]
[400237252,1767210651776,-193.3811029,0.00035828,30]
[400237253,1767210651786,-303.4572356,0.00035828,30]
[400237254,1767210651795,-599.7286954,0.00035828,30]
[400237255,1767210651805,-303.4572356,0.00035828,30]
[400237256,1767210651814,-599.7286954,0.00035828,30]
[400237257,1767210651823,-193.3811029,0.00035828,30]
[400237258,1767210651832,-193.3811029,0.00035828,30]
[400237259,1767210651841,-303.4572356,0.00035828,30]
[400237260,1767210651850,-599.7286954,0.00035828,30]
[400237261,1767210651860,-599.7286954,0.00035828,30]
[400237262,1767210651871,-303.4572356,0.00035828,30]
[400237263,1767210651880,-303.4572356,0.00035828,30]
[400237264,1767210651889,-599.7286954,0.00035828,30]
[400237265,1767210651899,-599.7286954,0.00035828,30]
[400237266,1767210651909,-599.7286954,0.00035828,30]
[400237267,1767210651919,-599.7286954,0.00035828,30]
[400237268,1767210651928,-599.7286954,0.00035828,30]
[400237269,1767210651937,-397.7732961,0.00035828,30]